Cogmind - Beta 14 *** ADVENTURER MODE // 2025.03.23 @ 14:19:31 Player: h0rm1g4 Result: Self-destructed Performance ------------- Evolutions (1) 500 Regions Visited (2) 400 Robots Destroyed (6) 30 Value Destroyed (233) 233 Prototype IDs (0) 0 Alien Tech Used (0) 0 Bonus (0) 0 TOTAL SCORE: 1163 Bonus ------- None Cogmind --------- Core Integrity 237/400 Matter 260/300 Energy 290/290 System Corruption 0% Temperature Cool (0) Movement Walking (130) Location -9/Materials Parts ------- > --- POWER (2) -------- Light Ion Engine Improved Ion Engine > --- PROPULSION (2) --- Titanium Leg Titanium Leg > --- UTILITY (3) ------ Small Storage Unit Targeting Computer ECM Suite > --- WEAPON (2) ------- Datajack > --- INVENTORY (8) ---- Heat Sink Improved Heat Sink High-capacity Matter Pod (31) Light Armor Plating Peak State ------------ > --- POWER ------------ Improved Ion Engine Light Nuclear Core > --- PROPULSION ------- Wheel Wheel > --- UTILITY ---------- Small Storage Unit Targeting Computer ECM Suite > --- WEAPON ----------- Assault Rifle Autogun > --- INVENTORY -------- Light Ion Engine Titanium Leg Titanium Leg Heat Sink Improved Heat Sink High-capacity Matter Pod Light Armor Plating Datajack [Rating: 14] Favorites ----------- Power Ion Engine Engine Ion Engine Power Core Light Nuclear Core Propulsion Wheel Treads Light Treads Leg Titanium Leg Wheel Wheel Utility Small Storage Unit Device ECM Suite Storage Small Storage Unit Processor Targeting Computer Weapon Medium Laser Energy Gun Medium Laser Ballistic Gun Assault Rifle Special Melee Weapon Datajack Build | -11 -10 -9 ------- Run | Yrd Mat Mat Slots Evolved 2 | . . 2 Power 1 | . . 1 Propulsion . | . . . Utility 1 | . . 1 Weapon . | . . . Parts Attached 17 | 5 3 9 Power 4 | 1 . 3 Engine 3 | 1 . 2 Core 1 | . . 1 Reactor . | . . . Propulsion 6 | 2 2 2 Treads 2 | 2 . . Leg 2 | . . 2 Wheel 2 | . 2 . Hover . | . . . Flight . | . . . Utility 3 | 1 1 1 Device 1 | . 1 . Storage 1 | 1 . . Processor 1 | . . 1 Hackware . | . . . Protection . | . . . Artifact . | . . . Weapon 4 | 1 . 3 Energy Gun 1 | 1 . . Energy Cannon . | . . . Ballistic Gun 2 | . . 2 Ballistic Cannon . | . . . Launcher . | . . . Special Weapon . | . . . Impact Weapon . | . . . Slashing Weapon . | . . . Piercing Weapon . | . . . Special Melee Weapon 1 | . . 1 Unidentified Prototypes . | . . . Parts Lost 6 | . . 6 Power 2 | . . 2 Propulsion 2 | . . 2 Utility . | . . . Weapon 2 | . . 2 Highest Loss Streak 5 | . . 5 To Critical Strikes . | . . . Average Slot Usage (%) 82 | . 80 84 Engine 14 | . 14 14 Treads 9 | . 19 . Wheel 12 | . 8 17 Device 10 | . 9 11 Storage 12 | . 14 11 Processor 5 | . . 10 Energy Gun 8 | . 14 1 Ballistic Gun 7 | . . 15 Peak Build Rating 14 | 5 6 14 Average Rating 7 | 3 5 10 On Entrance 3 | . 5 6 Naked Turns . | . . . Heaviest Build 24 | 12 14 24 Greatest Support 40 | 40 40 34 Greatest Overweight (x) 5 | . . 5 Average Overweight (x) . | . . . Largest Inventory Capacity 8 | 8 8 8 Average Capacity 7 | 7 8 8 Most Carried 8 | 3 4 8 Average Carried 4 | 1 2 6 Final Capacity 8 | 8 8 8 Final Carried 4 | 2 4 4 Class Distribution -------------------- 100% | Mutant Dominant Class ---------------- Mutant | -10/Materials Mutant | -9/Materials Resources | -11 -10 -9 ----------- Run | Yrd Mat Mat Matter Collected 447 | 205 75 167 Remotely . | . . . Salvage Created 264 | . 97 167 Parts 14 | . 3 11 Haulers Intercepted . | . . . Recyclers Shooed . | . . . Parts Field Recycled . | . . . Retrieved Matter . | . . . Parts Self-Destructed . | . . . Prevented . | . . . Kills | -11 -10 -9 ------- Run | Yrd Mat Mat Combat Hostiles Destroyed 5 | . 2 3 Guns 5 | . 2 3 Classes Destroyed 3 | . 1 2 Watcher 1 | . . 1 Grunt 4 | . 2 2 Sentry 1 | . . 1 Best Kill Streak 2 | . 2 2 Combat Bots Only 2 | . 2 2 Max Kills in Single Turn 1 | . 1 1 Gunslinging . | . . . Exploded . | . . . Melee . | . . . Uniques/NPCs Destroyed . | . . . Combat | -11 -10 -9 -------- Run | Yrd Mat Mat Hostile Shots Fired 112 | . 20 92 Missed 22 | . 3 19 Damage Taken 893 | . 153 740 Core 211 | . 48 163 Absorbed by Shields . | . . . Ignored by Resistances 265 | . 46 219 Core Remaining (%) 90 | 100 80 . Volleys Fired 30 | . 13 17 Largest 2 | . 1 2 Hottest 50 | . 50 43 Shots Fired 46 | . 13 33 Gun 46 | . 13 33 Cannon . | . . . Launcher . | . . . Special . | . . . Kinetic 33 | . . 33 Thermal 13 | . 13 . Explosive . | . . . Electromagnetic . | . . . Robot Hit Streak 8 | . 6 8 Robot Miss Streak 2 | . 2 2 Penetration Max . | . . . Secondary Targets 1 | . . 1 Max Gunslinging Chain 1 | . . 1 Shots Hit Robots 33 | . 10 23 Core Hits 13 | . 5 8 Critical Kills . | . . . Critical Parts Destroyed . | . . . Critical Strikes . | . . . Melee Attacks 1 | . . 1 Impact . | . . . Slashing . | . . . Piercing . | . . . Sneak Attacks . | . . . Combat Hostiles . | . . . Follow-up Attacks . | . . . Damage Inflicted 427 | . 124 303 Guns 427 | . 124 303 Cannons . | . . . Explosions . | . . . Melee . | . . . Ramming . | . . . Kinetic 303 | . . 303 Thermal 124 | . 124 . Explosive . | . . . Electromagnetic . | . . . Impact . | . . . Slashing . | . . . Piercing . | . . . Highest Corruption 1 | . 1 . Average Corruption 1 | . 1 . Corruption Purged . | . . . Corruption Blocked . | . . . Effects 2 | . 2 . Heat Flow Errors 1 | . 1 . Data Loss (minor) 1 | . 1 . Overload Shots . | . . . Overflow Damage . | . . . Projectiles . | . . . Explosions . | . . . Melee . | . . . Knockbacks . | . . . Impact . | . . . Kinetic . | . . . Secondary . | . . . Self-Inflicted Damage . | . . . Shots . | . . . Rammed . | . . . Targets Rammed . | . . . Kicked . | . . . Crushed . | . . . Highest Temperature 238 | . 238 63 Average Temperature 77 | . 121 19 Received Heat Transfer 528 | . 117 411 Siege Activations . | . . . Robots Corrupted . | . . . Combat Hostiles . | . . . Parts Fried . | . . . Impact Corruptions . | . . . Robots Melted . | . . . Combat Hostiles . | . . . Parts Melted 1 | . 1 . Heat Transferred 370 | . 370 . Parts Sabotaged . | . . . Parts Stolen . | . . . Parts Stripped . | . . . Power Chain Reactions . | . . . Alert | -11 -10 -9 ------- Run | Yrd Mat Mat Peak Influence 160 | . 50 160 Initial 18 | . . 18 Average 44 | . 19 80 Maximum Alert Level . | . . . Low Security (%) 100 | 100 100 100 Level 1 . | . . . Level 2 . | . . . Level 3 . | . . . Level 4 . | . . . Level 5 . | . . . High Security . | . . . Max Security . | . . . Squads Dispatched 4 | . . 4 Investigation 2 | . . 2 Extermination . | . . . Reinforcement 2 | . . 2 Assault . | . . . Garrison . | . . . Intercept . | . . . Searches Triggered . | . . . Construction Impeded . | . . . Haulers Reinforced . | . . . Active Scanning Responses . | . . . Cargo Convoy Interrupts . | . . . Stealth | -11 -10 -9 --------- Run | Yrd Mat Mat Distress Signals 2 | . . 2 Communications Jammed . | . . . Distress Signals . | . . . Times Spotted 23 | . 5 18 Peak Tracking Total 6 | . 2 6 Tactical Retreats 6 | . 1 5 Traps | -11 -10 -9 ------- Run | Yrd Mat Mat Traps Triggered 4 | . 2 2 Indirectly . | . . . Trap Hack Attempts . | . . . Triggered . | . . . Disarmed . | . . . Reprogrammed . | . . . Reused . | . . . Traps Extracted . | . . . Installed . | . . . Triggered . | . . . Machines | -11 -10 -9 ---------- Run | Yrd Mat Mat Machines Disabled 1 | . . 1 Max in Single Turn 1 | . . 1 Machines Repaired . | . . . Machines Dismantled . | . . . Machines Sabotaged . | . . . Overloaded Fab Kills . | . . . Hacking | -11 -10 -9 --------- Run | Yrd Mat Mat Machines Accessed 1 | . 1 . Terminals 1 | . 1 . Fabricators . | . . . Repair Stations . | . . . Recycling Units . | . . . Scanalyzers . | . . . Garrison Access . | . . . Total Hacks 3 | . 3 . Successful 3 | . 3 . Failed . | . . . Catastrophic . | . . . Database Lockouts . | . . . Manual . | . . . Terminals 3 | . 3 . Fabricators . | . . . Repair Stations . | . . . Recycling Units . | . . . Scanalyzers . | . . . Garrison Access . | . . . Terminal Hacks 3 | . 3 . Record 3 | . 3 . Fabricator Hacks . | . . . Repair Station Hacks . | . . . Recycling Unit Hacks . | . . . Scanalyzer . | . . . Garrison Access Hacks . | . . . Unauthorized Hacks . | . . . Terminals . | . . . Fabricators . | . . . Repair Stations . | . . . Recycling Units . | . . . Scanalyzers . | . . . Garrison Access . | . . . Data Cores Recovered . | . . . Used . | . . . Hacking Detections . | . . . Full Trace Events . | . . . Feedback Events . | . . . Feedback Blocked . | . . . Robot Schematics Acquired . | . . . Robots Built . | . . . Authchips . | . . . Time . | . . . Total Robot Build Rating . | . . . Part Schematics Acquired . | . . . Parts Built . | . . . Authchips . | . . . Time . | . . . Total Part Build Rating . | . . . Parts Repaired . | . . . Time . | . . . Parts Recycled . | . . . Recycled Matter . | . . . Retrieved Matter . | . . . Retrieved Components . | . . . Parts Scanalyzed . | . . . Part Schematics Acquired . | . . . Parts Damaged . | . . . Bothacking | -11 -10 -9 ------------ Run | Yrd Mat Mat Used RIF Installer . | . . . Robots Hacked 1 | . . 1 Non-combat . | . . . Combat 1 | . . 1 Robot Hacks Applied 1 | . . 1 parse_system 1 | . . 1 Relay Couplers Released . | . . . Fabnet Peak Effective % . | . . . Robots Rewired . | . . . Allies Hacked . | . . . Hacks Repelled . | . . . Allies | -11 -10 -9 -------- Run | Yrd Mat Mat Total Allies . | . . . Largest Group . | . . . Highest-Rated Group . | . . . Highest-Rated Ally . | . . . Total Orders . | . . . Ally Attacks . | . . . Total Damage . | . . . Kills . | . . . Allies Corrupted . | . . . Allies Melted . | . . . Intel | -11 -10 -9 ------- Run | Yrd Mat Mat Robot Analysis Total . | . . . Derelict Logs Recovered . | . . . Drone Launches . | . . . Drone Recoveries . | . . . Exploration | -11 -10 -9 ------------- Run | Yrd Mat Mat Turns Passed 764 | 78 349 337 Spaces Moved 580 | 46 262 272 Core 22 | 6 . 16 Treads 171 | 40 131 . Legs 6 | . . 6 Wheels 381 | . 131 250 Hover . | . . . Flight . | . . . Fastest Speed 50 | 50 80 80 Average Speed 112 | 145 120 98 Slowest Speed 300 | 160 160 300 Overloaded Moves . | . . . Propulsion Burnouts . | . . . Robots Hopped . | . . . Cave-ins Triggered . | . . . Exploration Rate (%) 28 | 4 48 33 Regions Visited 2 Branch Regions . Pre-discovered Areas . | . . . Known Exits Taken . | . . . Unknown Exits Taken 2 | 1 1 . Scrap Searched . | . . . Spaces Dug . | . . . Terrain Destroyed . | . . . Melee . | . . . Projectile . | . . . AOE . | . . . Terrain Rammed . | . . . Walls Destroyed . | . . . Machines Disabled . | . . . Actions | -11 -10 -9 --------- Run | Yrd Mat Mat Total 650 | 57 284 309 Wait 1 | . . 1 Move 578 | 45 261 272 Hop . | . . . Pick Up 20 | 7 5 8 Fast Attach 1 | . . 1 Attach 16 | 5 3 8 Detach . | . . . Swap . | . . . Drop 3 | . 2 1 Fire 30 | . 13 17 Melee 1 | . . 1 Ram . | . . . Kick . | . . . Crush . | . . . Escape Stasis . | . . . Rewire . | . . . Trap . | . . . Miscellaneous . | . . . Route ------- -11/Scrapyard -10/Materials (discovered 3 exits: [*Mat x2] / [*Min]) -9/Materials History --------- Turn | Location | Event 17 | -11/Scrapyard | Discovered new exit (range 15) 79 | -11/Scrapyard | Entered Materials 139 | -10/Materials | Discovered new exit (range 15) 300 | -10/Materials | Build established: Mutant 322 | -10/Materials | Discovered new exit (range 3) 387 | -10/Materials | Discovered new exit (range 15) 428 | -10/Materials | Entered another Materials area 428 | -9/Materials | Evolved 2 slots: Power x1, Utility x1 757 | -9/Materials | Lost 5 parts (1p2n2w) 765 | -9/Materials | Self-destructed Last Messages --------------- reinforcements. 00657_ ALERT: Hostiles spotted, dispatching reinforcements to Terminal M001. 00657_ O-16 Technician locks terminal. 00660_ U-05 Engineer builds a Door. 00676_ W-16 Scout distress signal alerts nearby ally. 00690_ Wheel destroyed. 00690_ Destroyed Sensor Array. 00693_ W-16 Scout destroyed. 00696_ Acquired 29 matter. 00701_ Assault Rifle destroyed. 00705_ Wheel destroyed. 00707_ Lgt. Nuclear Core destroyed. 00723_ ALERT: Hostiles spotted, dispatching reinforcements to Terminal M010. 00726_ Autogun destroyed. 00761_ Jacked G-34 Mercenary... >>parse_system Reading system data... Map ----- +----------------------------------------------------+ | # #???# #?# #? [ #???????????????????????? | | # ##### ### #? #???????????????????????? | | # #??T" #???????????????????????? | | ### #??"" #???????????????????????? | | #??? [#???????????????????????? | | ##########+## ###???######???????????????????????? | | ????????????# #??????????????????????????????????? | | ????????????#!#??????????????????????????????????? | | ????????????# #??????????????????????????????????? | | ????????????# #??????????????????????????????????? | | ###?????????# #??????????????????????????????????? | | #?????????# #??????????????????????????????????? | | ""#?????????# #??????????????????????????????????? | | T"#?????????# #??????????????????????????????????? | | ""#?????????# #??????????????????????????????????? | | #?????????# #??????????????????????????????????? | | #?????????# #??????????????????????????????????? | | ###??????#### ##?????????????????????????????????? | | #??????### #######################???????????? | | ??????????? | | ! ??????????? | | g ??????????? | | ######+### ########g########+###?????????????? | | ?????????###+###??# gYg #????????????????????? | | ??????????????????# Y #????????????????????? | | ??????????????????# @ #????????????????????? | | ??????????????????# #????????????????????? | | ??????????????????# #????????????????????? | | ??????????????????# #????????????????????? | | ??????????????????# #????????????????????? | | ??????????????????# #????????????????????? | | ??????????????????###########????????????????????? | | ?????????????????????????????????????????????????? | | ?????????????????????????????????????????????????? | | | | | | | | | | | | | | | | | | | | | | | | | | | | | | | | | +----------------------------------------------------+ Best States ------------- Heat Dissipation 28 Energy Generation 21 Energy Capacity 415 Matter Stores 300 Matter Capacity 300 Sight Range 16 Terrain Scan Density 10 ECM Strength 1 Resistance: KI 20 Resistance: TH 20 Resistance: EX 20 Resistance: EM 20 Resistance: I 20 Resistance: S 20 Resistance: P 20 Evasion (%) 44 Recoil Reduction 2 Offensive Hacking 10 Item Schematics ----------------- None Robot Schematics ------------------ None Fabricated ------------ Nothing Alien Tech Used ----------------- None Achievements -------------- None Challenges ------------ None Game ------ Seed FluxReactionTorch Manual? 0 Play Time 00:17:12 Cumulative 27.2 hours Start 2025.03.23 @ 14:03:11 End 2025.03.23 @ 14:19:31 Sessions 1 Manual Loads 0 Difficulty Adventurer Special Mode None Game No. 22 Rogue 7 Adventurer 15 Explorer 0 Win Type - Total 0 Types 0/0/0/0/0/0/0/0/0 Lore% 6 Gallery% 24 Achievement% 18 Wizard Run 0 Options --------- Layout 1 ASCII 0 Keyboard 0 Movement Mouse Keybinds 0 Fullscreen 1 Font 24/Smallcaps Map View 50x35 Zoom Use 0% Tactical HUD 1 Map Filters NONE Filters NONE Steam 1 RUN: 2acf8854-5447-4b8b-8d62-1071a5aa8c71